fUSD/lending_fUSD_20241108
["ID","MTS","AMOUNT","RATE_DAILY","PERIOD"]
[341617554,1731040253488,-154.0,0.00027397,2]
[341617555,1731040253498,-154.0,0.00027397,2]
[341617556,1731040253508,-154.0,0.00027397,2]
[341617557,1731040253518,-153.0,0.00027397,2]
[341617558,1731040253528,-153.0,0.00027397,2]
[341617559,1731040253537,-153.0,0.00027397,2]
[341617560,1731040253545,-153.0,0.00027397,2]
[341617561,1731040253554,-153.0,0.00027397,2]
[341617562,1731040253563,-200.0,0.00027397,2]
[341617563,1731040253572,-200.0,0.00027397,2]
[341617564,1731040253582,-153.0,0.00027397,2]
[341617565,1731040253591,-153.0,0.00027397,2]
[341617566,1731040253601,-160.0,0.00027397,2]
[341617567,1731040253611,-160.0,0.00027397,2]
[341617568,1731040253620,-160.0,0.00027397,2]
[341617569,1731040253629,-160.0,0.00027397,2]
[341617570,1731040253638,-1000.0,0.00027397,3]
[341617571,1731040253647,-1000.0,0.00027397,3]
[341617572,1731040253657,-1000.0,0.00027397,3]
[341617573,1731040253666,-1000.0,0.00027397,3]
[341617574,1731040253675,-1000.0,0.00027397,3]
[341617575,1731040253683,-1000.0,0.00027397,3]
[341617576,1731040253693,-1000.0,0.00027397,3]
[341617577,1731040253703,-1000.0,0.00027397,3]
[341617578,1731040253714,-1000.0,0.00027397,3]
[341617579,1731040253725,-1000.0,0.00027397,3]
[341617580,1731040253734,-1000.0,0.00027397,3]
[341617581,1731040253743,-1000.0,0.00027397,3]
[341617582,1731040253751,-1000.0,0.00027397,3]
[341617583,1731040253760,-1000.0,0.00027397,3]
[341617584,1731040253769,-1000.0,0.00027397,3]
[341617585,1731040253778,-1000.0,0.00027397,3]
[341617586,1731040253787,-1000.0,0.00027397,3]
[341617587,1731040253795,-1000.0,0.00027397,3]
[341617588,1731040253804,-1000.0,0.00027397,3]
[341617589,1731040253813,-1000.0,0.00027397,3]
[341617590,1731040253822,-1000.0,0.00027397,3]
[341617591,1731040253832,-1000.0,0.00027397,3]
[341617592,1731040253844,-1000.0,0.00027397,3]
[341617593,1731040253853,-1000.0,0.00027397,3]
[341617594,1731040253861,-1000.0,0.00027397,3]
[341617595,1731040253870,-1000.0,0.00027397,3]
[341617596,1731040253880,-1000.0,0.00027397,3]
[341617597,1731040253889,-152.129033,0.00027397,7]
[341617598,1731040253897,-1000.0,0.00027397,3]
[341617599,1731040253906,-1000.0,0.00027397,3]
[341617600,1731040253917,-1000.0,0.00027397,3]
[341617601,1731040253926,-1000.0,0.00027397,3]
[341617602,1731040253935,-1000.0,0.00027397,3]
[341617603,1731040253943,-200.0,0.00027397,7]
[341617604,1731040253952,-1000.0,0.00027397,3]
[341617605,1731040253961,-1000.0,0.00027397,3]
[341617606,1731040253970,-1033.0,0.00027397,3]
[341617607,1731040253979,-1000.0,0.00027397,3]
[341617608,1731040253988,-1000.0,0.00027397,3]
[341617609,1731040253997,-1000.0,0.00027397,3]
[341617610,1731040254006,-1000.0,0.00027397,3]
[341617611,1731040254015,-1000.0,0.00027397,3]
[341617612,1731040254023,-1000.0,0.00027397,3]
[341617613,1731040254032,-3000.0,0.00027397,2]
[341617614,1731040254041,-3000.0,0.00027397,2]
[341617615,1731040254050,-3000.0,0.00027397,2]
[341617616,1731040254059,-3000.0,0.00027397,2]
[341617617,1731040254068,-3000.0,0.00027397,2]
[341617618,1731040254077,-3000.0,0.00027397,2]
[341617619,1731040254086,-3000.0,0.00027397,2]
[341617620,1731040254096,-3000.0,0.00027397,2]
[341617621,1731040254105,-3000.0,0.00027397,2]
[341617622,1731040254114,-3000.0,0.00027397,2]
[341617623,1731040254123,-1000.0,0.00027397,3]
[341617624,1731040254131,-1000.0,0.00027397,3]
[341617625,1731040254141,-1000.0,0.00027397,3]
[341617626,1731040254150,-1000.0,0.00027397,3]
[341617627,1731040254159,-1000.0,0.00027397,3]
[341617628,1731040254168,-1000.0,0.00027397,3]
[341617629,1731040254177,-376.0,0.00027397,3]
[341617630,1731040254186,-1000.0,0.00027397,3]
[341617631,1731040254196,-1000.0,0.00027397,3]
[341617632,1731040254205,-1000.0,0.00027397,3]
[341617633,1731040254214,-1000.0,0.00027397,3]
[341617634,1731040254222,-274.29,0.00027397,10]
[341617635,1731040254345,-228.58,0.00027397,10]
[341617636,1731040254355,-363.0,0.000274,2]
[341617637,1731040254364,-170.79,0.00027409,2]
[341617638,1731040254373,-150.0,0.00027417,2]
[341617639,1731040254383,-150.0,0.00027417,2]
[341617640,1731040254392,-150.0,0.00027417,2]
[341617641,1731040254402,-150.0,0.00027417,2]
[341617642,1731040254411,-150.0,0.00027417,2]
[341617643,1731040254420,-164.908403,0.0002744,2]
[341617644,1731040254429,-532.77946116,0.00027446,2]
[341617645,1731040254439,-150.110806,0.00027448,3]
[341617646,1731040254448,-768.5,0.00027492,15]
[341617647,1731040254457,-300.68182976,0.000275,3]
[341617648,1731040254467,-1000.0,0.000275,2]
[341617649,1731040254477,-150.110806,0.00027548,3]
[341617650,1731040254486,-4126.6299705,0.00027571,2]
[341617651,1731040254496,-398.0,0.000276,11]
[341617652,1731040254505,-196.0,0.000276,11]
[341617653,1731040254514,-600.0,0.000276,2]
[341617654,1731040254523,-152.0,0.00027653,7]
[341617655,1731040254532,-726.32637044,0.00027669,2]
[341617656,1731040254542,-2000.0,0.00027671,2]
[341617657,1731040254552,-500.0,0.00027671,2]
[341617658,1731040254561,-500.0,0.00027671,2]
[341617659,1731040254570,-500.0,0.00027671,2]
[341617660,1731040254580,-500.0,0.00027671,2]
[341617661,1731040254591,-500.0,0.00027671,2]
[341617662,1731040254600,-500.0,0.00027671,2]
[341617663,1731040254609,-500.0,0.00027671,2]
[341617664,1731040254618,-500.0,0.00027671,2]
[341617665,1731040254627,-510.65,0.00027671,2]
[341617666,1731040254638,-500.0,0.00027671,2]
[341617667,1731040254647,-500.3,0.00027671,2]
[341617668,1731040254656,-500.0,0.00027671,2]
[341617669,1731040254665,-500.0,0.00027671,2]
[341617670,1731040254674,-500.0,0.00027671,2]
[341617671,1731040254683,-500.0,0.00027671,2]
[341617672,1731040254692,-500.0,0.00027671,2]
[341617673,1731040254702,-500.0,0.00027671,2]
[341617674,1731040254712,-500.0,0.00027671,2]
[341617675,1731040254722,-500.0,0.00027671,2]
[341617676,1731040254732,-500.0,0.00027671,2]
[341617677,1731040254742,-500.0,0.00027671,2]
[341617678,1731040254751,-500.0,0.00027671,2]
[341617679,1731040254762,-500.0,0.00027671,2]
[341617680,1731040254772,-500.0,0.00027671,2]
[341617681,1731040254781,-500.0,0.00027671,2]
[341617682,1731040254790,-500.0,0.00027671,2]
[341617683,1731040254799,-500.0,0.00027671,2]
[341617684,1731040254808,-500.0,0.00027671,2]
[341617685,1731040254817,-500.0,0.00027671,2]
[341617686,1731040254826,-500.0,0.00027671,2]
[341617687,1731040254840,-500.0,0.00027671,2]
[341617688,1731040254850,-500.0,0.00027671,2]
[341617689,1731040254858,-500.0,0.00027671,2]
[341617690,1731040254868,-500.0,0.00027671,2]
[341617691,1731040254878,-500.0,0.00027671,2]
[341617692,1731040254887,-500.0,0.00027671,2]
[341617693,1731040254895,-500.0,0.00027671,2]
[341617694,1731040254904,-500.0,0.00027671,2]
[341617695,1731040254913,-521.32,0.00027671,2]
[341617696,1731040254925,-500.9,0.00027671,2]
[341617697,1731040254935,-500.0,0.00027671,2]
[341617698,1731040254943,-500.0,0.00027671,2]
[341617699,1731040254952,-500.0,0.00027671,2]
[341617700,1731040254961,-500.0,0.00027671,2]
[341617701,1731040254971,-500.0,0.00027671,2]
[341617702,1731040254980,-500.0,0.00027671,2]
[341617703,1731040254989,-500.0,0.00027671,2]
[341617704,1731040254998,-572.17,0.00027671,2]
[341617705,1731040255007,-511.15475789,0.00027671,2]
[341617706,1731040255015,-1048.96,0.00027671,2]
[341617707,1731040255024,-500.0,0.00027671,2]
[341617708,1731040255033,-500.0,0.00027671,2]
[341617709,1731040255042,-500.0,0.00027671,2]
[341617710,1731040255051,-163.95659137,0.00027671,2]
[341617711,1731040255059,-500.0,0.00027671,2]
[341617712,1731040255069,-500.0,0.00027671,2]
[341617713,1731040255078,-300.0,0.00027671,2]
[341617714,1731040255087,-589.42,0.00027671,2]
[341617715,1731040255097,-500.0,0.00027671,2]
[341617716,1731040255106,-500.0,0.00027671,2]
[341617717,1731040255115,-505.34,0.00027671,2]
[341617718,1731040255124,-500.0,0.00027671,2]
[341617719,1731040255133,-500.0,0.00027671,2]
[341617720,1731040255142,-500.0,0.00027671,2]
[341617721,1731040255151,-256.27133298,0.00027671,2]
[341617722,1731040255161,-483.26356062,0.00027671,2]
[341617723,1731040255170,-500.0,0.00027671,2]
[341617724,1731040255179,-500.0,0.00027671,2]
[341617725,1731040255188,-935.36,0.00027671,2]
[341617726,1731040255197,-500.0,0.00027671,2]
[341617727,1731040255206,-500.0,0.00027671,2]
[341617728,1731040255216,-500.0,0.00027671,2]
[341617729,1731040255225,-500.0,0.00027671,2]
[341617730,1731040255234,-500.0,0.00027671,2]
[341617731,1731040255243,-500.0,0.00027671,2]
[341617732,1731040255252,-500.0,0.00027671,2]
[341617733,1731040255261,-646.19,0.00027671,2]
[341617734,1731040255270,-500.0,0.00027671,2]
[341617735,1731040255279,-511.4,0.00027671,2]
[341617736,1731040255288,-500.0,0.00027671,2]
[341617737,1731040255296,-500.0,0.00027671,2]
[341617738,1731040255305,-500.0,0.00027671,2]
[341617739,1731040255314,-704.44,0.00027671,2]
[341617740,1731040255323,-500.0,0.00027671,2]
[341617741,1731040255332,-500.0,0.00027671,2]
[341617742,1731040255341,-500.0,0.00027671,2]
[341617743,1731040255351,-608.19,0.00027671,2]
[341617744,1731040255360,-500.0,0.00027671,2]
[341617745,1731040255369,-326.57814986,0.00027671,2]
[341617746,1731040255378,-500.0,0.00027671,2]
[341617747,1731040255387,-500.0,0.00027671,2]
[341617748,1731040255396,-500.0,0.00027671,2]
[341617749,1731040255406,-500.0,0.00027671,2]
[341617750,1731040255415,-1147.53,0.00027671,2]
[341617751,1731040255425,-500.0,0.00027671,2]
[341617752,1731040255434,-500.0,0.00027671,2]
[341617753,1731040255443,-500.0,0.00027671,2]
[341617754,1731040255452,-500.0,0.00027671,2]
[341617755,1731040255461,-682.63,0.00027671,2]
[341617756,1731040255470,-641.89,0.00027671,2]
[341617757,1731040255479,-500.0,0.00027671,2]
[341617758,1731040255489,-500.0,0.00027671,2]
[341617759,1731040255499,-500.0,0.00027671,2]
[341617760,1731040255507,-3024.65,0.00027671,2]
[341617761,1731040255517,-500.0,0.00027671,2]
[341617762,1731040255526,-500.0,0.00027671,2]
[341617763,1731040255535,-500.0,0.00027671,2]
[341617764,1731040255545,-500.0,0.00027671,2]
[341617765,1731040255554,-500.0,0.00027671,2]
[341617766,1731040255563,-500.0,0.00027671,2]
[341617767,1731040255573,-500.0,0.00027671,2]
[341617768,1731040255582,-975.41,0.00027671,2]
[341617769,1731040255592,-825.09,0.00027671,2]
[341617770,1731040255605,-376.01070927,0.00027671,2]
[341617771,1731040255614,-500.0,0.00027671,2]
[341617772,1731040255623,-545.41,0.00027671,2]
[341617773,1731040255633,-500.0,0.00027671,2]
[341617774,1731040255642,-500.0,0.00027671,2]
[341617775,1731040255651,-500.0,0.00027671,2]
[341617776,1731040255660,-500.0,0.00027671,2]
[341617777,1731040255669,-500.0,0.00027671,2]
[341617778,1731040255678,-500.0,0.00027671,2]
[341617779,1731040255689,-500.0,0.00027671,2]
[341617780,1731040255698,-500.0,0.00027671,2]
[341617781,1731040255707,-515.2,0.00027671,2]
[341617782,1731040255718,-500.0,0.00027671,2]
[341617783,1731040255727,-500.0,0.00027671,2]
[341617784,1731040255737,-500.0,0.00027671,2]
[341617785,1731040255748,-500.0,0.00027671,2]
[341617786,1731040255758,-782.22,0.00027671,2]
[341617787,1731040255768,-631.69,0.00027671,2]
[341617788,1731040255777,-151.0,0.00027671,7]
[341617789,1731040255789,-151.0,0.00027671,7]
[341617790,1731040255799,-500.0,0.00027671,2]
[341617791,1731040255810,-151.0,0.00027671,7]
[341617792,1731040255819,-199.953244,0.00027671,7]
[341617793,1731040255828,-500.0,0.00027671,2]
[341617794,1731040255839,-500.0,0.00027671,2]
[341617795,1731040255848,-536.54,0.00027671,2]
[341617796,1731040255857,-500.0,0.00027671,2]
[341617797,1731040255867,-500.0,0.00027671,2]
[341617798,1731040255879,-514.27567134,0.00027671,2]
[341617799,1731040255888,-226.81,0.00027671,2]
[341617800,1731040255896,-500.0,0.00027671,2]
[341617801,1731040255906,-500.0,0.00027671,2]
[341617802,1731040255914,-345.26753357,0.00027671,2]
[341617803,1731040255924,-500.0,0.00027671,2]
[341617804,1731040255932,-1081.84,0.00027671,2]
[341617805,1731040255941,-500.0,0.00027671,2]
[341617806,1731040255950,-500.0,0.00027671,2]
[341617807,1731040255962,-500.0,0.00027671,2]
[341617808,1731040255971,-612.97,0.00027671,2]
[341617809,1731040255981,-500.0,0.00027671,2]
[341617810,1731040255990,-500.0,0.00027671,2]
[341617811,1731040255999,-500.0,0.00027671,2]
[341617812,1731040256008,-743.84,0.00027671,2]
[341617813,1731040256018,-500.0,0.00027671,2]
[341617814,1731040256028,-500.0,0.00027671,2]
[341617815,1731040256038,-500.0,0.00027671,2]
[341617816,1731040256047,-372.18601682,0.00027671,2]
[341617817,1731040256056,-500.0,0.00027671,2]
[341617818,1731040256066,-632.41,0.00027671,2]
[341617819,1731040256076,-506.67,0.00027671,2]
[341617820,1731040256086,-791.27,0.00027671,2]
[341617821,1731040256096,-500.0,0.00027671,2]
[341617822,1731040256109,-500.0,0.00027671,2]
[341617823,1731040256121,-500.0,0.00027671,2]
[341617824,1731040256130,-500.0,0.00027671,2]
[341617825,1731040256139,-547.6,0.00027671,2]
[341617826,1731040256148,-524.82,0.00027671,2]
[341617827,1731040256157,-500.0,0.00027671,2]
[341617828,1731040256167,-500.0,0.00027671,2]
[341617829,1731040256175,-500.0,0.00027671,2]
[341617830,1731040256186,-500.0,0.00027671,2]
[341617831,1731040256195,-500.0,0.00027671,2]
[341617832,1731040256205,-500.0,0.00027671,2]
[341617833,1731040256214,-500.0,0.00027671,2]
[341617834,1731040256223,-500.0,0.00027671,2]
[341617835,1731040256233,-500.0,0.00027671,2]
[341617836,1731040256243,-500.0,0.00027671,2]
[341617837,1731040256253,-539.95,0.00027671,2]
[341617838,1731040256263,-500.0,0.00027671,2]
[341617839,1731040256272,-500.0,0.00027671,2]
[341617840,1731040256282,-519.22,0.00027671,2]
[341617841,1731040256291,-500.0,0.00027671,2]
[341617842,1731040256302,-500.0,0.00027671,2]
[341617843,1731040256312,-531.61,0.00027671,2]
[341617844,1731040256322,-500.0,0.00027671,2]
[341617845,1731040256331,-500.0,0.00027671,2]
[341617846,1731040256341,-500.0,0.00027671,2]
[341617847,1731040256351,-470.86188541,0.00027671,2]
[341617848,1731040256361,-637.29,0.00027671,2]
[341617849,1731040256370,-500.0,0.00027671,2]
[341617850,1731040256380,-500.0,0.00027671,2]
[341617851,1731040256389,-500.0,0.00027671,2]
[341617852,1731040256399,-500.0,0.00027671,2]
[341617853,1731040256408,-500.0,0.00027671,2]
[341617854,1731040256417,-500.0,0.00027671,2]
[341617855,1731040256523,-500.0,0.00027671,2]
[341617856,1731040256547,-559.39,0.00027671,2]
[341617857,1731040256556,-500.0,0.00027671,2]
[341617858,1731040256566,-969.47,0.00027671,2]
[341617859,1731040256576,-500.0,0.00027671,2]
[341617860,1731040256586,-500.0,0.00027671,2]
[341617861,1731040256596,-500.0,0.00027671,2]
[341617862,1731040256606,-667.09,0.00027671,2]
[341617863,1731040256616,-500.0,0.00027671,2]
[341617864,1731040256626,-500.0,0.00027671,2]
[341617865,1731040256635,-616.18,0.00027671,2]
[341617866,1731040256644,-603.13,0.00027671,2]
[341617867,1731040256653,-500.0,0.00027671,2]
[341617868,1731040256662,-533.0,0.00027671,2]
[341617869,1731040256671,-500.0,0.00027671,2]
[341617870,1731040256680,-500.0,0.00027671,2]
[341617871,1731040256690,-500.0,0.00027671,2]
[341617872,1731040256699,-517.27,0.00027671,2]
[341617873,1731040256708,-500.0,0.00027671,2]
[341617874,1731040256719,-500.0,0.00027671,2]
[341617875,1731040256729,-535.79,0.00027671,2]
[341617876,1731040256738,-500.0,0.00027671,2]
[341617877,1731040256747,-229.07102562,0.00027671,2]
[341617878,1731040256756,-839.34,0.00027671,2]
[341617879,1731040256765,-534.40617129,0.00027671,2]
[341617880,1731040256774,-500.0,0.00027671,2]
[341617881,1731040256783,-500.0,0.00027671,2]
[341617882,1731040256792,-500.0,0.00027671,2]
[341617883,1731040256801,-500.0,0.00027671,2]
[341617884,1731040256810,-804.58,0.00027671,2]
[341617885,1731040256819,-500.0,0.00027671,2]
[341617886,1731040256828,-500.0,0.00027671,2]
[341617887,1731040256842,-500.0,0.00027671,2]
[341617888,1731040256851,-500.0,0.00027671,2]
[341617889,1731040256860,-500.0,0.00027671,2]
[341617890,1731040256869,-500.0,0.00027671,2]
[341617891,1731040256881,-500.0,0.00027671,2]
[341617892,1731040256890,-556.75,0.00027671,2]
[341617893,1731040256899,-500.0,0.00027671,2]
[341617894,1731040256908,-617.61,0.00027671,2]
[341617895,1731040256919,-500.0,0.00027671,2]
[341617896,1731040256928,-742.87,0.00027671,2]
[341617897,1731040256940,-1011.35,0.00027671,2]
[341617898,1731040256952,-500.0,0.00027671,2]
[341617899,1731040256961,-665.71,0.00027671,2]
[341617900,1731040256971,-500.0,0.00027671,2]
[341617901,1731040256981,-510.79,0.00027671,2]
[341617902,1731040256990,-523.54,0.00027671,2]
[341617903,1731040257000,-347.3064263,0.00027671,2]
[341617904,1731040257010,-500.0,0.00027671,2]
[341617905,1731040257022,-822.96,0.00027671,2]
[341617906,1731040257031,-500.0,0.00027671,2]
[341617907,1731040257040,-1318.45,0.00027671,2]
[341617908,1731040257050,-11445.03,0.00027671,2]
[341617909,1731040257059,-500.0,0.00027671,2]
[341617910,1731040257068,-500.0,0.00027671,2]
[341617911,1731040257077,-1290.82,0.00027671,2]
[341617912,1731040257087,-500.0,0.00027671,2]
[341617913,1731040257097,-500.0,0.00027671,2]
[341617914,1731040257107,-565.91,0.00027671,2]
[341617915,1731040257116,-500.0,0.00027671,2]
[341617916,1731040257125,-568.67,0.00027671,2]
[341617917,1731040257134,-908.43,0.00027671,2]
[341617918,1731040257143,-500.0,0.00027671,2]
[341617919,1731040257152,-500.0,0.00027671,2]
[341617920,1731040257161,-679.63,0.00027671,2]
[341617921,1731040257172,-500.0,0.00027671,2]
[341617922,1731040257181,-500.0,0.00027671,2]
[341617923,1731040257190,-500.0,0.00027671,2]
[341617924,1731040257199,-500.0,0.00027671,2]
[341617925,1731040257207,-947.81,0.00027671,2]
[341617926,1731040257216,-1004.97,0.00027671,2]
[341617927,1731040257225,-500.0,0.00027671,2]
[341617928,1731040257235,-1946.14,0.00027671,2]
[341617929,1731040257243,-1000.77,0.00027671,2]
[341617930,1731040257253,-1541.48,0.00027671,2]
[341617931,1731040257262,-500.0,0.00027671,2]
[341617932,1731040257271,-625.93,0.00027671,2]
[341617933,1731040257280,-1865.63,0.00027671,2]
[341617934,1731040257289,-500.0,0.00027671,2]
[341617935,1731040257298,-500.0,0.00027671,2]
[341617936,1731040257307,-500.0,0.00027671,2]
[341617937,1731040257316,-878.91,0.00027671,2]
[341617938,1731040257325,-1284.98,0.00027671,2]
[341617939,1731040257334,-500.0,0.00027671,2]
[341617940,1731040257344,-1707.34,0.00027671,2]
[341617941,1731040257354,-500.0,0.00027671,2]
[341617942,1731040257365,-500.0,0.00027671,2]
[341617943,1731040257374,-4089.6,0.00027671,2]
[341617944,1731040257383,-777.1,0.00027671,2]
[341617945,1731040257392,-500.0,0.00027671,2]
[341617946,1731040257401,-500.0,0.00027671,2]
[341617947,1731040257410,-500.0,0.00027671,2]
[341617948,1731040257419,-572.44,0.00027671,2]
[341617949,1731040257428,-540.0,0.00027671,2]
[341617950,1731040257437,-500.0,0.00027671,2]
[341617951,1731040257447,-860.3,0.00027671,2]
[341617952,1731040257456,-500.0,0.00027671,2]
[341617953,1731040257465,-500.0,0.00027671,2]
[341617954,1731040257474,-1216.65,0.00027671,2]
[341617955,1731040257483,-718.99,0.00027671,2]
[341617956,1731040257492,-500.0,0.00027671,2]
[341617957,1731040257502,-1260.73,0.00027671,2]
[341617958,1731040257511,-510.54,0.00027671,2]
[341617959,1731040257520,-500.0,0.00027671,2]
[341617960,1731040257529,-2704.99,0.00027671,2]
[341617961,1731040257539,-500.0,0.00027671,2]
[341617962,1731040257548,-500.0,0.00027671,2]
[341617963,1731040257557,-2331.48,0.00027671,2]
[341617964,1731040257567,-500.0,0.00027671,2]
[341617965,1731040257577,-1563.47,0.00027671,2]
[341617966,1731040257587,-500.0,0.00027671,2]
[341617967,1731040257600,-614.09,0.00027671,2]
[341617968,1731040257610,-1346.4,0.00027671,2]
[341617969,1731040257619,-500.0,0.00027671,2]
[341617970,1731040257628,-891.99,0.00027671,2]
[341617971,1731040257638,-631.18,0.00027671,2]
[341617972,1731040257647,-749.48,0.00027671,2]
[341617973,1731040257656,-500.0,0.00027671,2]
[341617974,1731040257666,-500.0,0.00027671,2]
[341617975,1731040257675,-500.0,0.00027671,2]
[341617976,1731040257685,-615.68,0.00027671,2]
[341617977,1731040257694,-500.0,0.00027671,2]
[341617978,1731040257703,-500.0,0.00027671,2]
[341617979,1731040257714,-500.0,0.00027671,2]
[341617980,1731040257723,-1000.0,0.00027671,2]
[341617981,1731040257732,-500.0,0.00027671,2]
[341617982,1731040257741,-500.0,0.00027671,2]
[341617983,1731040257750,-664.49,0.00027671,2]
[341617984,1731040257759,-691.27,0.00027671,2]
[341617985,1731040257767,-938.36,0.00027671,2]
[341617986,1731040257777,-1808.93,0.00027671,2]
[341617987,1731040257786,-500.0,0.00027671,2]
[341617988,1731040257795,-500.0,0.00027671,2]
[341617989,1731040257805,-500.0,0.00027671,2]
[341617990,1731040257814,-500.0,0.00027671,2]
[341617991,1731040257823,-1366.11,0.00027671,2]
[341617992,1731040257834,-567.59,0.00027671,2]
[341617993,1731040257848,-500.0,0.00027671,2]
[341617994,1731040257857,-603.44,0.00027671,2]
[341617995,1731040257867,-2158.79,0.00027671,2]
[341617996,1731040257876,-635.95,0.00027671,2]
[341617997,1731040257887,-500.0,0.00027671,2]
[341617998,1731040257896,-500.0,0.00027671,2]
[341617999,1731040257905,-620.25,0.00027671,2]
[341618000,1731040257917,-1709.09,0.00027671,2]
[341618001,1731040257926,-825.98,0.00027671,2]
[341618002,1731040257935,-5320.28,0.00027671,2]
[341618003,1731040257945,-500.0,0.00027671,2]
[341618004,1731040257955,-539.38,0.00027671,2]
[341618005,1731040257964,-587.5,0.00027671,2]
[341618006,1731040257973,-658.39,0.00027671,2]
[341618007,1731040257982,-699.0,0.00027671,2]
[341618008,1731040257992,-500.0,0.00027671,2]
[341618009,1731040258002,-610.15,0.00027671,2]
[341618010,1731040258012,-500.0,0.00027671,2]
[341618011,1731040258021,-500.0,0.00027671,2]
[341618012,1731040258030,-500.0,0.00027671,2]
[341618013,1731040258039,-500.0,0.00027671,2]
[341618014,1731040258048,-500.0,0.00027671,2]
[341618015,1731040258057,-500.0,0.00027671,2]
[341618016,1731040258066,-500.0,0.00027671,2]
[341618017,1731040258075,-816.52,0.00027671,2]
[341618018,1731040258084,-500.0,0.00027671,2]
[341618019,1731040258095,-585.69,0.00027671,2]
[341618020,1731040258104,-500.0,0.00027671,2]
[341618021,1731040258113,-920.66013814,0.00027671,2]
[341618022,1731040258123,-151.09635944,0.00027671,2]
[341618023,1731040258131,-1241.53,0.00027671,2]
[341618024,1731040258141,-514.54,0.00027671,2]
[341618025,1731040258152,-748.63,0.00027671,2]
[341618026,1731040258161,-539.17,0.00027671,2]
[341618027,1731040258170,-847.32,0.00027671,2]
[341618028,1731040258181,-150.0,0.00027671,2]
[341618029,1731040258192,-150.0,0.00027671,2]
[341618030,1731040258202,-150.0,0.00027671,2]
[341618031,1731040258212,-150.0,0.00027671,2]
[341618032,1731040258222,-171.29074448,0.00027671,2]
[341618033,1731040258231,-500.0,0.00027671,2]
[341618034,1731040258240,-500.0,0.00027671,2]
[341618035,1731040258250,-500.0,0.00027671,2]
[341618036,1731040258259,-713.23166583,0.00027671,2]
[341618037,1731040258271,-601.57,0.00027671,2]
[341618038,1731040258280,-500.0,0.00027671,2]
[341618039,1731040258289,-150.0,0.00027671,2]
[341618040,1731040258298,-200.32291009,0.00027671,2]
[341618041,1731040258308,-606.64,0.00027671,2]
[341618042,1731040258319,-1322.92,0.00027671,2]
[341618043,1731040258328,-500.0,0.00027671,2]
[341618044,1731040258337,-1041.6,0.00027671,2]
[341618045,1731040258349,-885.51,0.00027671,2]
[341618046,1731040258358,-676.2,0.00027671,2]
[341618047,1731040258367,-150.0,0.00027671,2]
[341618048,1731040258376,-150.0,0.00027671,2]
[341618049,1731040258385,-3765.67,0.00027671,2]
[341618050,1731040258395,-267.17748608,0.00027671,2]
[341618051,1731040258406,-150.0,0.00027671,2]
[341618052,1731040258415,-835.0,0.00027671,2]
[341618053,1731040258423,-835.0,0.00027671,2]